lending/lending_fUSD_20240723
["ID","MTS","AMOUNT","RATE_DAILY","PERIOD"]
[332949519,1721700584326,18813.53344333,9.041e-05,2]
[332949542,1721700633948,-404.7199998,9.38e-05,2]
[332949543,1721700633963,-627.08000007,9.38e-05,2]
[332949544,1721700633976,-404.72999987,9.38e-05,2]
[332949545,1721700633989,-10624.79000026,9.38e-05,2]
[332949546,1721700633999,-250.0,9.388e-05,2]
[332949547,1721700634010,-1000.0,9.399e-05,2]
[332949548,1721700634021,-168.7,9.402e-05,2]
[332949549,1721700634031,-558.05,0.00010123,2]
[332949550,1721700634041,-1005.87,0.00010123,2]
[332949551,1721700634052,-558.05,0.00010126,2]
[332949552,1721700634062,-558.05,0.00010128,2]
[332949553,1721700634072,-558.05,0.00010131,2]
[332949554,1721700634082,-558.05,0.00010134,2]
[332949555,1721700634092,-558.05,0.00010136,2]
[332949556,1721700634102,-558.05,0.00010139,2]
[332949557,1721700634112,-558.05,0.00010142,2]
[332949558,1721700634122,-558.05,0.00010144,2]
[332949559,1721700634132,-536.0400736,0.00010147,2]
[332949560,1721700634145,-22.0099264,0.00010147,2]
[332949561,1721700634155,-558.05,0.0001015,2]
[332949562,1721700634165,-373.87036172,0.00010152,2]
[332949563,1721700634177,-184.17963828,0.00010152,2]
[332949564,1721700634186,-65.82036172,0.00010155,2]
[332949565,1721700634198,-492.22963828,0.00010155,2]
[332949566,1721700634303,-558.05,0.00010158,2]
[332949567,1721700634314,-558.05,0.0001016,2]
[332949568,1721700634324,-558.05,0.00010163,2]
[332949569,1721700634335,-558.05,0.00010166,2]
[332949570,1721700634346,-415.02555332,0.00010168,2]
[332949571,1721700634358,-143.02444668,0.00010168,2]
[332949572,1721700634368,-112.95114761,0.00010171,2]
[332949573,1721700634380,-445.09885239,0.00010171,2]
[332949574,1721700634390,-98.92114761,0.00010171,2]
[332949575,1721700634608,-51.07885239,0.00010171,2]
[332949576,1721700634618,-558.05,0.00010173,2]
[332949577,1721700634628,-154.53,0.00010441,2]
[332949578,1721700634637,-1000.0,0.00010574,2]
[332949579,1721700634647,-1064.0,0.0001074,2]
[332949580,1721700634657,-511.3400112,0.00010762,2]
[332949581,1721700634668,-1000.0,0.00010857,2]
[332949582,1721700634677,-423.94344831,0.00010858,2]
[332949583,1721700634689,-155.17869362,0.00010858,2]
[332949584,1721700634699,-176.94035328,0.00010858,2]
[332949585,1721700634710,-263.8874,0.00010858,2]
[332949586,1721700634720,-3.9935531,0.00010858,2]
[332949587,1721700634731,-208.8787469,0.00010858,2]
[332949588,1721700634741,-286.845,0.00010858,2]
[332949589,1721700634751,-119.53066702,0.000109,2]
[332949590,1721700634762,-305.90933298,0.000109,2]
[332949591,1721700634773,-408.3157,0.00010932,2]
[332949592,1721700634782,-380.96638948,0.00010957,2]
[332949593,1721700634795,-499.6,0.00010957,2]
[332949594,1721700634807,-451.29181068,0.00010957,2]
[332949595,1721700634816,-548.60878932,0.00010957,2]
[332949596,1721700634827,-1000.3932,0.00010957,2]
[332949597,1721700634839,-3682.03172911,0.00010957,2]
[332949598,1721700634851,-448.74875887,0.00010957,2]
[332949599,1721700639142,-1434.25303561,0.00010957,2]
[332949605,1721700639206,-1163.51090331,0.00010957,2]
[332949608,1721700639223,-703.08324707,0.00010957,2]
[332949617,1721700640876,-268.365,0.00010957,2]
[332949864,1721700643730,-751.00533671,0.00010957,2]
[332949866,1721700643740,-184.31649296,0.00010957,2]
[332949868,1721700643753,-294.14994472,0.00010957,2]
[332949895,1721700644013,-412.96210516,9.388e-05,2]
[332949897,1721700644025,-908.03845156,9.388e-05,2]
[332949899,1721700644036,-6231.96154844,0.00010957,2]
[332949901,1721700644048,-3289.57201388,0.00010957,2]
[332949903,1721700644058,-7545.57655293,0.00010957,2]
[332949927,1721700646478,-621.52230721,0.00010957,2]
[332949944,1721700646795,-1832.90113986,0.00010957,2]
[332949945,1721700646804,-4987.46958711,0.00010957,2]
[332949946,1721700646894,-5012.53041289,0.00010957,2]
[332949947,1721700646904,-6177.14187885,0.00010957,2]
[332949948,1721700646916,-2499.18517507,0.00010957,2]
[332949949,1721700646928,-1365.09785457,0.00010957,2]
[332949950,1721700646938,-500.0,0.00010958,2]
[332949951,1721700646948,-500.0,0.00010958,2]
[332949952,1721700646957,-500.0,0.00010958,2]
[332949953,1721700646969,-500.0,0.00010958,2]
[332949954,1721700646979,-500.0,0.00010958,2]
[332949955,1721700646988,-500.0,0.00010958,2]
[332949956,1721700646998,-500.0,0.00010958,2]
[332949957,1721700647008,-500.0,0.00010958,2]
[332949958,1721700647018,-500.0,0.00010958,2]
[332949959,1721700647027,-500.0,0.00010958,2]
[332949960,1721700647036,-500.0,0.00010958,2]
[332949961,1721700647045,-500.0,0.00010958,2]
[332949962,1721700647055,-500.0,0.00010958,2]
[332949963,1721700647065,-500.0,0.00010958,2]
[332949964,1721700647075,-500.0,0.00010958,2]
[332949965,1721700647085,-500.0,0.00010958,2]
[332949966,1721700647095,-500.0,0.00010958,2]
[332949967,1721700647105,-500.0,0.00010958,2]
[332949968,1721700647115,-500.0,0.00010958,2]
[332949969,1721700647125,-500.0,0.00010958,2]
[332949970,1721700647134,-327.98078338,0.00010958,2]
[332949971,1721700647171,-172.01921662,0.00010958,2]
[332949972,1721700647181,-500.0,0.00010958,2]
[332949973,1721700647191,-500.0,0.00010958,2]
[332949974,1721700647202,-500.0,0.00010958,2]
[332949975,1721700647212,-500.0,0.00010958,2]
[332949976,1721700647223,-500.0,0.00010958,2]
[332949977,1721700647232,-500.0,0.00010958,2]
[332949978,1721700647242,-500.0,0.00010958,2]
[332949979,1721700647252,-500.0,0.00010958,2]
[332949980,1721700647263,-500.0,0.00010958,2]
[332949981,1721700647275,-500.0,0.00010958,2]
[332949982,1721700647285,-500.0,0.00010958,2]
[332949983,1721700647295,-500.0,0.00010958,2]
[332949984,1721700647305,-36.80107579,0.00010958,2]
[332949988,1721700745406,154.1,8.271e-05,2]
[332949989,1721700783761,18813.53344333,8.271e-05,2]
[332949990,1721700791752,18813.53344333,8.271e-05,2]
[332949996,1721700899980,18813.53344333,8.271e-05,2]
[332950002,1721700994146,18813.53344333,8.271e-05,2]
[332950003,1721701091798,18813.53344333,8.271e-05,2]
[332950004,1721701106881,18813.53344333,8.271e-05,2]
[332950006,1721701206809,17265.96259792,8.271e-05,2]
[332950010,1721701308003,154.1,8.219e-05,2]
[332950057,1721701833350,-243.01,9.805e-05,2]
[332950058,1721701833361,-341.58550704,9.833e-05,2]
[332950059,1721701833375,-144.41449296,9.833e-05,2]
[332950060,1721701833385,-343.03545044,9.833e-05,2]
[332950061,1721701833397,-886.99,9.833e-05,2]
[332950064,1721701833504,-1024.46379481,9.833e-05,2]
[332950065,1721701833514,-300.0,9.834e-05,2]
[332950066,1721701833524,-23890.0,9.835e-05,2]
[332950067,1721701833534,-400.0,9.843e-05,2]
[332950068,1721701833543,-174.70034989,9.962e-05,2]
[332950069,1721701833553,-600.0,9.989e-05,2]
[332950070,1721701833562,-150.0,0.0001,2]
[332950071,1721701833571,-169.56,0.00010068,2]
[332950072,1721701833580,-150.0,0.00010143,2]
[332950073,1721701833590,-420.08,0.00010144,2]
[332950074,1721701833602,-357.07,0.00010144,2]
[332950075,1721701833612,-499.99,0.00010144,2]
[332950076,1721701833622,-18157.0,0.00010144,2]
[332950077,1721701833632,-179.99,0.00010144,2]
[332950078,1721701833643,-219.6,0.000103,2]
[332950079,1721701833652,-529.84,0.000103,2]
[332950080,1721701833661,-711.37,0.000103,2]
[332950081,1721701833671,-150.0,0.000103,2]
[332950082,1721701833680,-154.1,0.000106,2]
[332950083,1721701833690,-4154.0,0.00010633,2]
[332950084,1721701833699,-1059.05,0.00010678,2]
[332950085,1721701833709,-420.0,0.00010817,2]
[332950086,1721701833718,-176.94035326,0.00010858,2]
[332950087,1721701833727,-1262.11625528,0.00010858,2]
[332950088,1721701833737,-1615.08859743,0.00010858,2]
[332950089,1721701833746,-862.3452079,0.00010858,2]
[332950090,1721701833756,-10695.70857964,0.00010858,2]
[332950091,1721701833778,-3431.02632036,0.00010858,2]
[332950092,1721701833787,-4606.3499,0.00010858,2]
[332950093,1721701833796,-2919.217,0.00010858,2]
[332950094,1721701833805,-233.7015,0.00010858,2]
[332950095,1721701833815,-500.0,0.00010897,2]
[332950096,1721701833825,-500.0,0.00010898,2]
[332950097,1721701833834,-204.81527964,0.000109,2]
[332950098,1721701833846,-135.65259168,0.000109,2]
[332950099,1721701833855,-467.85540834,0.0001095,2]
[332950100,1721701833867,-16616.3608979,0.0001095,2]
[332950101,1721701838712,-630.73413543,0.00010025,2]
[332950102,1721701838724,-529.12011047,0.00010025,2]
[332950103,1721701838737,-16225.49855497,0.00010025,2]
[332950104,1721701838746,-47411.27726786,0.0001095,2]
[332950105,1721701838755,-833.8209187,0.00010951,2]
[332950106,1721701838765,-22905.0984458,0.00010951,2]
[332950107,1721701838776,-1331.85820016,0.00010957,2]
[332950108,1721701838786,-402.52527822,0.00010958,2]
[332950109,1721701838795,-1000.0,0.00010958,2]
[332950118,1721701839156,-1000.0,0.00010958,2]
[332950119,1721701839166,-1000.0,0.00010958,2]
[332950120,1721701839175,-1000.0,0.00010958,2]
[332950121,1721701839184,-1000.0,0.00010958,2]
[332950122,1721701839193,-1000.0,0.00010958,2]
[332950123,1721701839203,-1000.0,0.00010958,2]
[332950124,1721701839212,-1000.0,0.00010958,2]
[332950125,1721701839221,-1000.0,0.00010958,2]
[332950126,1721701839231,-1000.0,0.00010958,2]
[332950127,1721701839241,-1000.0,0.00010958,2]
[332950128,1721701839251,-1000.0,0.00010958,2]
[332950129,1721701839261,-1000.0,0.00010958,2]
[332950130,1721701839271,-1000.0,0.00010958,2]
[332950131,1721701839280,-1000.0,0.00010958,2]
[332950132,1721701839289,-1000.0,0.00010958,2]
[332950133,1721701839300,-1000.0,0.00010958,2]
[332950134,1721701839309,-1000.0,0.00010958,2]
[332950135,1721701839318,-1000.0,0.00010958,2]
[332950136,1721701839329,-1000.0,0.00010958,2]
[332950137,1721701839338,-1000.0,0.00010958,2]
[332950138,1721701839347,-195.90313149,0.00010958,2]
[332950139,1721701839356,-188.84596951,0.00010958,2]
[332950140,1721701839366,-500.0,0.00010958,2]
[332950141,1721701839375,-500.0,0.00010958,2]
[332950142,1721701839386,-500.0,0.00010958,2]
[332950143,1721701839395,-500.0,0.00010958,2]
[332950144,1721701839404,-500.0,0.00010958,2]
[332950145,1721701839414,-216.72194496,0.00010958,2]
[332950146,1721701839423,-474.25595852,0.00010958,2]
[332950147,1721701839433,-500.0,0.00010958,2]
[332950148,1721701839442,-500.0,0.00010958,2]
[332950149,1721701839452,-500.0,0.00010958,2]
[332950150,1721701839461,-500.0,0.00010958,2]
[332950151,1721701839470,-576.98253401,0.00010958,2]
[332950152,1721701839479,-500.0,0.00010958,2]
[332950153,1721701839488,-500.0,0.00010958,2]
[332950154,1721701839498,-500.0,0.00010958,2]
[332950155,1721701839507,-500.0,0.00010958,2]
[332950156,1721701839516,-500.0,0.00010958,2]
[332950157,1721701839526,-500.0,0.00010958,2]
[332950158,1721701839536,-500.0,0.00010958,2]
[332950159,1721701839545,-500.0,0.00010958,2]
[332950160,1721701839555,-500.0,0.00010958,2]
[332950161,1721701839564,-500.0,0.00010958,2]
[332950162,1721701839574,-500.0,0.00010958,2]
[332950163,1721701839583,-500.0,0.00010958,2]
[332950164,1721701839592,-500.0,0.00010958,2]
[332950165,1721701839604,-500.0,0.00010958,2]
[332950166,1721701839613,-500.0,0.00010958,2]
[332950167,1721701839624,-500.0,0.00010958,2]
[332950168,1721701839633,-500.0,0.00010958,2]
[332950169,1721701839643,-500.0,0.00010958,2]
[332950170,1721701839652,-155.65268188,0.00010958,2]
[332950171,1721701839661,-500.0,0.00010958,2]
[332950172,1721701839671,-500.0,0.00010958,2]
[332950173,1721701839680,-500.0,0.00010958,2]
[332950174,1721701839690,-500.0,0.00010958,2]
[332950175,1721701839699,-500.0,0.00010958,2]
[332950176,1721701839708,-500.0,0.00010958,2]
[332950177,1721701839717,-500.0,0.00010958,2]
[332950178,1721701839727,-500.0,0.00010958,2]
[332950179,1721701839736,-496.73674012,0.00010958,2]
[332950180,1721701839746,-500.0,0.00010958,2]
[332950181,1721701839755,-500.0,0.00010958,2]
[332950182,1721701839764,-491.16973683,0.00010958,2]
[332950183,1721701839774,-500.0,0.00010958,2]
[332950184,1721701839784,-500.0,0.00010958,2]
[332950185,1721701839793,-500.0,0.00010958,2]
[332950186,1721701839803,-498.84754341,0.00010958,2]
[332950187,1721701839812,-500.0,0.00010958,2]
[332950188,1721701839821,-500.0,0.00010958,2]
[332950189,1721701839830,-500.0,0.00010958,2]
[332950190,1721701839839,-500.0,0.00010958,2]
[332950191,1721701839849,-500.0,0.00010958,2]
[332950192,1721701839858,-500.0,0.00010958,2]
[332950193,1721701839868,-500.0,0.00010958,2]
[332950194,1721701839877,-500.0,0.00010958,2]
[332950195,1721701839887,-500.0,0.00010958,2]
[332950196,1721701839899,-500.0,0.00010958,2]
[332950197,1721701839908,-331.47159763,0.00010958,2]
[332950198,1721701839918,-500.0,0.00010958,2]
[332950199,1721701839927,-500.0,0.00010958,2]
[332950200,1721701839937,-500.0,0.00010958,2]
[332950201,1721701839947,-500.0,0.00010958,2]
[332950202,1721701839956,-500.0,0.00010958,2]
[332950203,1721701839965,-500.0,0.00010958,2]
[332950204,1721701839976,-500.0,0.00010958,2]
[332950205,1721701839985,-201.32093049,0.00010958,2]
[332950206,1721701839994,-614.09307691,0.00010958,2]
[332950207,1721701840003,-500.0,0.00010958,2]
[332950208,1721701840012,-1049.03428357,0.00010958,2]
[332950209,1721701840022,-500.0,0.00010958,2]
[332950210,1721701840031,-500.0,0.00010958,2]
[332950211,1721701840040,-500.0,0.00010958,2]
[332950212,1721701840050,-500.0,0.00010958,2]
[332950213,1721701840059,-500.0,0.00010958,2]
[332950214,1721701840068,-508.08543478,0.00010958,2]
[332950215,1721701840077,-500.0,0.00010958,2]
[332950216,1721701840087,-500.0,0.00010958,2]
[332950217,1721701840096,-500.0,0.00010958,2]
[332950218,1721701840105,-500.0,0.00010958,2]
[332950219,1721701840114,-500.0,0.00010958,2]
[332950220,1721701840125,-500.0,0.00010958,2]
[332950221,1721701840135,-500.0,0.00010958,2]
[332950222,1721701840144,-500.0,0.00010958,2]
[332950223,1721701840154,-500.0,0.00010958,2]
[332950224,1721701840163,-577.84251152,0.00010958,2]
[332950225,1721701840172,-500.0,0.00010958,2]
[332950226,1721701840182,-500.0,0.00010958,2]
[332950227,1721701840191,-500.0,0.00010958,2]
[332950228,1721701840201,-500.0,0.00010958,2]
[332950229,1721701840210,-500.0,0.00010958,2]
[332950230,1721701840220,-500.0,0.00010958,2]
[332950231,1721701840229,-500.0,0.00010958,2]
[332950232,1721701840239,-500.0,0.00010958,2]
[332950233,1721701840248,-500.0,0.00010958,2]
[332950234,1721701840257,-500.0,0.00010958,2]
[332950235,1721701840267,-500.0,0.00010958,2]
[332950236,1721701840276,-500.0,0.00010958,2]
[332950237,1721701840286,-458.18025954,0.00010958,2]
[332950238,1721701840296,-1737.27,0.00010958,2]
[332950239,1721701840305,-1737.27,0.00010958,2]
[332950240,1721701840316,-1737.27,0.00010958,2]
[332950241,1721701840325,-1737.27,0.00010958,2]
[332950243,1721701840335,-1737.27,0.00010958,2]
[332950245,1721701840345,-499.75820972,0.00010958,2]
[332950250,1721701840500,-1237.51179028,0.00010958,2]
[332950251,1721701840510,-1737.27,0.00010958,2]
[332950252,1721701840519,-1737.27,0.00010958,2]
[332950253,1721701840529,-1737.27,0.00010958,2]
[332950254,1721701840539,-1737.27,0.00010958,2]
[332950255,1721701840548,-1737.27,0.00010958,2]
[332950256,1721701840558,-1737.27,0.00010958,2]
[332950257,1721701840567,-1737.27,0.00010958,2]
[332950258,1721701840577,-1737.27,0.00010958,2]
[332950259,1721701840587,-1737.27,0.00010958,2]
[332950260,1721701840597,-1737.27,0.00010958,2]
[332950261,1721701840611,-1737.27,0.00010958,2]
[332950262,1721701840623,-1737.27,0.00010958,2]
[332950264,1721701840632,-1737.27,0.00010958,2]
[332950265,1721701840643,-500.0,0.00010958,2]
[332950266,1721701840652,-1737.27,0.00010958,2]
[332950267,1721701840662,-500.0,0.00010958,2]
[332950268,1721701840672,-1737.27,0.00010958,2]
[332950269,1721701840682,-500.0,0.00010958,2]
[332950270,1721701840692,-1737.27,0.00010958,2]
[332950271,1721701840702,-500.0,0.00010958,2]
[332950272,1721701840711,-1737.27,0.00010958,2]
[332950273,1721701840721,-500.0,0.00010958,2]
[332950274,1721701840730,-1737.37453524,0.00010958,2]
[332950275,1721701840740,-634.85539839,0.00010958,2]
[332950276,1721701840749,-2000.0,0.00010958,2]
[332950277,1721701840759,-500.0,0.00010958,2]
[332950278,1721701840769,-500.0,0.00010958,2]
[332950279,1721701840778,-500.0,0.00010958,2]
[332950280,1721701840788,-500.0,0.00010958,2]
[332950281,1721701840797,-500.0,0.00010958,2]
[332950282,1721701840807,-500.0,0.00010958,2]
[332950283,1721701840817,-500.0,0.00010958,2]
[332950284,1721701840826,-500.0,0.00010958,2]
[332950285,1721701840836,-500.0,0.00010958,2]
[332950286,1721701840846,-500.0,0.00010958,2]
[332950287,1721701840856,-500.0,0.00010958,2]
[332950288,1721701840865,-500.0,0.00010958,2]
[332950289,1721701840876,-500.0,0.00010958,2]
[332950290,1721701840886,-500.0,0.00010958,2]
[332950291,1721701840895,-500.0,0.00010958,2]
[332950292,1721701840906,-813.0,0.00010958,2]
[332950293,1721701840915,-524.34097933,0.00010958,2]
[332950294,1721701840925,-500.0,0.00010958,2]
[332950295,1721701840935,-813.0,0.00010958,2]
[332950296,1721701840945,-500.0,0.00010958,2]
[332950297,1721701840954,-813.0,0.00010958,2]
[332950298,1721701840964,-500.0,0.00010958,2]
[332950299,1721701840973,-813.0,0.00010958,2]
[332950300,1721701840983,-500.0,0.00010958,2]
[332950301,1721701840992,-813.0,0.00010958,2]
[332950302,1721701841002,-500.0,0.00010958,2]
[332950303,1721701841012,-813.0,0.00010958,2]
[332950304,1721701841023,-500.0,0.00010958,2]
[332950305,1721701841032,-813.0,0.00010958,2]
[332950306,1721701841042,-500.0,0.00010958,2]
[332950307,1721701841052,-813.0,0.00010958,2]
[332950308,1721701841062,-500.0,0.00010958,2]
[332950309,1721701841072,-813.0,0.00010958,2]
[332950310,1721701841082,-500.0,0.00010958,2]
[332950311,1721701841091,-813.0,0.00010958,2]
[332950314,1721701841101,-500.0,0.00010958,2]
[332950316,1721701841111,-200.0,0.00010958,2]
[332950318,1721701841122,-813.0,0.00010958,2]
[332950320,1721701841131,-500.0,0.00010958,2]
[332950322,1721701841140,-813.0,0.00010958,2]
[332950324,1721701841149,-548.64730089,0.00010958,2]
[332950326,1721701841159,-813.0,0.00010958,2]
[332950327,1721701841169,-813.0,0.00010958,2]
[332950329,1721701841179,-813.0,0.00010958,2]
[332950331,1721701841188,-813.0,0.00010958,2]
[332950333,1721701841197,-500.0,0.00010958,2]
[332950335,1721701841207,-813.0,0.00010958,2]
[332950337,1721701841217,-500.0,0.00010958,2]
[332950339,1721701841226,-500.0,0.00010958,2]
[332950341,1721701841236,-500.0,0.00010958,2]
[332950343,1721701841245,-500.0,0.00010958,2]
[332950345,1721701841255,-813.0,0.00010958,2]
[332950347,1721701841265,-500.0,0.00010958,2]
[332950349,1721701841274,-500.0,0.00010958,2]
[332950351,1721701841283,-462.23288075,0.00010958,2]
[332950383,1721701841609,-37.76711925,0.00010958,2]
[332950385,1721701841619,-546.90130199,0.00010958,2]
[332950387,1721701841633,-266.09869801,0.00010958,2]
[332950389,1721701841643,-500.0,0.00010958,2]
[332950391,1721701841652,-372.08202518,0.00010958,2]
[332950426,1721701842022,-440.91797482,0.00010958,2]
[332950428,1721701842031,-500.0,0.00010958,2]
[332950430,1721701842041,-180.05047364,0.00010958,2]
[332950432,1721701842050,-500.0,0.00010958,2]
[332950434,1721701842060,-813.0,0.00010958,2]
[332950436,1721701842069,-500.0,0.00010958,2]
[332950438,1721701842079,-500.0,0.00010958,2]
[332950440,1721701842089,-504.38286624,0.00010958,2]
[332950442,1721701842098,-813.0,0.00010958,2]
[332950444,1721701842108,-500.0,0.00010958,2]
[332950446,1721701842117,-500.0,0.00010958,2]
[332950448,1721701842127,-813.0,0.00010958,2]
[332950450,1721701842136,-500.0,0.00010958,2]
[332950452,1721701842145,-813.05736027,0.00010958,2]
[332950454,1721701842154,-500.0,0.00010958,2]
[332950456,1721701842163,-500.0,0.00010958,2]
[332950458,1721701842172,-500.0,0.00010958,2]
[332950459,1721701842182,-500.0,0.00010958,2]
[332950461,1721701842191,-500.0,0.00010958,2]
[332950463,1721701842200,-500.0,0.00010958,2]
[332950465,1721701842210,-500.0,0.00010958,2]
[332950467,1721701842220,-500.0,0.00010958,2]
[332950469,1721701842229,-500.0,0.00010958,2]
[332950471,1721701842239,-500.0,0.00010958,2]
[332950473,1721701842248,-500.0,0.00010958,2]
[332950475,1721701842259,-500.0,0.00010958,2]
[332950477,1721701842268,-500.0,0.00010958,2]
[332950479,1721701842278,-500.0,0.00010958,2]
[332950481,1721701842287,-500.0,0.00010958,2]
[332950483,1721701842297,-500.0,0.00010958,2]
[332950485,1721701842306,-500.0,0.00010958,2]
[332950487,1721701842315,-500.0,0.00010958,2]
[332950489,1721701842325,-500.0,0.00010958,2]
[332950491,1721701842334,-500.0,0.00010958,2]
[332950493,1721701842344,-500.0,0.00010958,2]
[332950495,1721701842353,-382.85008602,0.00010958,2]
[332950497,1721701842362,-605.74970232,0.00010958,2]
[332950499,1721701842372,-500.0,0.00010958,2]
[332950501,1721701842381,-500.0,0.00010958,2]
[332950502,1721701842390,-500.0,0.00010958,2]
[332950504,1721701842399,-500.0,0.00010958,2]
[332950506,1721701842409,-500.0,0.00010958,2]
[332950508,1721701842418,-500.0,0.00010958,2]
[332950509,1721701842427,-500.0,0.00010958,2]
[332950511,1721701842436,-626.21317417,0.00010958,2]
[332950512,1721701842446,-500.0,0.00010958,2]
[332950514,1721701842455,-500.0,0.00010958,2]
[332950516,1721701842464,-500.0,0.00010958,2]
[332950518,1721701842473,-500.0,0.00010958,2]
[332950520,1721701842482,-500.0,0.00010958,2]
[332950522,1721701842492,-500.0,0.00010958,2]
[332950524,1721701842501,-500.0,0.00010958,2]
[332950526,1721701842510,-512.88403562,0.00010958,2]
[332950528,1721701842519,-500.0,0.00010958,2]
[332950530,1721701842529,-500.0,0.00010958,2]
[332950531,1721701842538,-500.0,0.00010958,2]
[332950533,1721701842547,-500.0,0.00010958,2]
[332950535,1721701842556,-500.0,0.00010958,2]
[332950537,1721701842566,-504.37282328,0.00010958,2]
[332950539,1721701842575,-500.0,0.00010958,2]
[332950541,1721701842584,-342.44760133,0.00010958,2]
[332950543,1721701842594,-500.0,0.00010958,2]
[332950545,1721701842606,-500.0,0.00010958,2]
[332950547,1721701842615,-500.0,0.00010958,2]
[332950549,1721701842625,-500.0,0.00010958,2]
[332950550,1721701842634,-500.0,0.00010958,2]
[332950552,1721701842644,-500.0,0.00010958,2]
[332950554,1721701842653,-500.0,0.00010958,2]
[332950556,1721701842662,-500.0,0.00010958,2]
[332950558,1721701842671,-500.0,0.00010958,2]
[332950560,1721701842681,-500.0,0.00010958,2]
[332950562,1721701842690,-500.0,0.00010958,2]
[332950564,1721701842699,-500.0,0.00010958,2]
[332950565,1721701842709,-521.45717771,0.00010958,2]
[332950567,1721701842718,-500.0,0.00010958,2]
[332950569,1721701842727,-203.57884708,0.00010958,2]
[332950571,1721701842736,-500.0,0.00010958,2]
[332950573,1721701842745,-500.0,0.00010958,2]
[332950574,1721701842754,-354.5504038,0.00010958,2]
[332950575,1721701842764,-500.0,0.00010958,2]
[332950576,1721701842773,-500.0,0.00010958,2]
[332950577,1721701842783,-500.0,0.00010958,2]
[332950578,1721701842792,-500.0,0.00010958,2]
[332950579,1721701842802,-500.0,0.00010958,2]
[332950580,1721701842811,-500.0,0.00010958,2]
[332950581,1721701842820,-516.071457,0.00010958,2]
[332950582,1721701842830,-500.0,0.00010958,2]
[332950583,1721701842839,-500.0,0.00010958,2]
[332950584,1721701842848,-500.0,0.00010958,2]
[332950585,1721701842857,-500.0,0.00010958,2]
[332950586,1721701842866,-543.97515155,0.00010958,2]
[332950587,1721701842876,-500.0,0.00010958,2]
[332950588,1721701842885,-500.0,0.00010958,2]
[332950589,1721701842894,-500.0,0.00010958,2]
[332950590,1721701842904,-500.0,0.00010958,2]
[332950591,1721701842913,-500.0,0.00010958,2]
[332950592,1721701842923,-500.0,0.00010958,2]
[332950593,1721701842932,-500.0,0.00010958,2]
[332950594,1721701842941,-500.0,0.00010958,2]
[332950595,1721701842951,-500.0,0.00010958,2]
[332950596,1721701842960,-500.0,0.00010958,2]
[332950597,1721701842969,-500.0,0.00010958,2]
[332950598,1721701842978,-500.0,0.00010958,2]
[332950599,1721701842987,-500.0,0.00010958,2]
[332950601,1721701842996,-500.0,0.00010958,2]
[332950603,1721701843005,-500.0,0.00010958,2]
[332950605,1721701843016,-500.0,0.00010958,2]
[332950607,1721701843026,-500.0,0.00010958,2]
[332950609,1721701843035,-500.0,0.00010958,2]
[332950611,1721701843044,-500.0,0.00010958,2]
[332950613,1721701843053,-500.0,0.00010958,2]
[332950615,1721701843062,-500.0,0.00010958,2]
[332950616,1721701843071,-500.0,0.00010958,2]
[332950618,1721701843080,-500.0,0.00010958,2]
[332950620,1721701843089,-500.0,0.00010958,2]
[332950622,1721701843098,-500.0,0.00010958,2]